fUSD/lending_fUSD_20250226
["ID","MTS","AMOUNT","RATE_DAILY","PERIOD"]
[354567412,1740577840826,-1563.92,0.00038628,14]
[354567413,1740577840835,-501.60573678,0.00038628,14]
[354567414,1740577840844,-943.3,0.00038628,14]
[354567415,1740577840857,-577.65,0.00038628,14]
[354567416,1740577840866,-939.4,0.00038628,14]
[354567417,1740577840875,-1267.61,0.00038628,14]
[354567418,1740577840884,-578.32,0.00038628,14]
[354567419,1740577840893,-506.54339571,0.00038628,14]
[354567420,1740577840902,-676.6,0.00038628,14]
[354567421,1740577840912,-904.12,0.00038628,14]
[354567422,1740577840921,-909.27,0.00038628,14]
[354567423,1740577840930,-679.06,0.00038628,14]
[354567424,1740577840939,-500.0,0.00038628,14]
[354567425,1740577840948,-1198.5,0.00038628,14]
[354567426,1740577840958,-843.37,0.00038628,14]
[354567427,1740577840967,-608.61,0.00038628,14]
[354567428,1740577840976,-738.4,0.00038628,14]
[354567429,1740577840985,-1475.91,0.00038628,14]
[354567430,1740577840994,-1120.02,0.00038628,14]
[354567431,1740577841003,-2196.09,0.00038628,14]
[354567432,1740577841013,-1079.47,0.00038628,14]
[354567433,1740577841022,-589.93,0.00038628,14]
[354567434,1740577841032,-783.92,0.00038628,14]
[354567435,1740577841042,-1902.54,0.00038628,14]
[354567436,1740577841052,-699.89,0.00038628,14]
[354567437,1740577841063,-922.8,0.00038628,14]
[354567438,1740577841075,-500.0,0.00038628,14]
[354567439,1740577841084,-500.0,0.00038628,14]
[354567440,1740577841094,-500.0,0.00038628,14]
[354567441,1740577841103,-500.0,0.00038628,14]
[354567442,1740577841114,-894.7,0.00038628,14]
[354567443,1740577841123,-500.0,0.00038628,14]
[354567444,1740577841133,-501.07621768,0.00038628,14]
[354567445,1740577841143,-500.0,0.00038628,14]
[354567446,1740577841152,-500.0,0.00038628,14]
[354567447,1740577841162,-517.79,0.00038628,14]
[354567448,1740577841171,-500.72907383,0.00038628,14]
[354567449,1740577841180,-509.68529075,0.00038628,14]
[354567450,1740577841190,-992.29,0.00038628,14]
[354567451,1740577841199,-1024.53,0.00038628,14]
[354567452,1740577841209,-500.0,0.00038628,14]
[354567453,1740577841219,-1992.53,0.00038628,14]
[354567454,1740577841229,-837.94,0.00038628,14]
[354567455,1740577841238,-996.74,0.00038628,14]
[354567456,1740577841247,-500.0,0.00038628,14]
[354567457,1740577841257,-1716.42,0.00038628,14]
[354567458,1740577841267,-1083.7,0.00038628,14]
[354567459,1740577841276,-500.0,0.00038628,14]
[354567460,1740577841285,-1427.01,0.00038628,14]
[354567461,1740577841295,-873.23,0.00038628,14]
[354567462,1740577841305,-1724.87,0.00038628,14]
[354567463,1740577841314,-1541.1,0.00038628,14]
[354567464,1740577841324,-853.86,0.00038628,14]
[354567465,1740577841333,-568.96,0.00038628,120]
[354567466,1740577841342,-1657.8,0.00038628,14]
[354567467,1740577841352,-1177.76,0.00038628,14]
[354567468,1740577841363,-503.79504873,0.00038628,14]
[354567469,1740577841372,-837.42,0.00038628,14]
[354567470,1740577841382,-738.79,0.00038628,14]
[354567471,1740577841391,-1146.25,0.00038628,14]
[354567472,1740577841402,-500.0,0.00038628,14]
[354567473,1740577841411,-1277.44,0.00038628,14]
[354567474,1740577841421,-703.97,0.00038628,14]
[354567475,1740577841430,-2708.98,0.00038628,14]
[354567476,1740577841440,-3028.36,0.00038628,14]
[354567477,1740577841449,-364.73730841,0.00038628,14]
[354567478,1740577841459,-1805.32,0.00038628,14]
[354567479,1740577841468,-500.0,0.00038628,14]
[354567480,1740577841477,-500.0,0.00038628,14]
[354567481,1740577841486,-500.0,0.00038628,14]
[354567482,1740577841496,-1102.48,0.00038628,7]
[354567483,1740577841505,-1567.51,0.00038628,14]
[354567484,1740577841516,-1014.94,0.00038628,14]
[354567485,1740577841527,-1959.78,0.00038628,14]
[354567486,1740577841536,-500.0,0.00038628,14]
[354567487,1740577841547,-790.21,0.00038628,14]
[354567488,1740577841556,-500.0,0.00038628,14]
[354567489,1740577841566,-500.0,0.00038628,14]
[354567490,1740577841574,-2008.07,0.00038628,14]
[354567491,1740577841584,-2154.4,0.00038628,14]
[354567492,1740577841594,-2656.79,0.00038628,14]
[354567493,1740577841606,-2642.81,0.00038628,14]
[354567494,1740577841615,-2078.28,0.00038628,2]
[354567495,1740577841625,-740.95,0.00038628,14]
[354567496,1740577841636,-2542.35,0.00038628,14]
[354567497,1740577841645,-3356.39,0.00038628,14]
[354567498,1740577841655,-1029.43,0.00038628,14]
[354567499,1740577841665,-2197.92,0.00038628,14]
[354567500,1740577841674,-500.0,0.00038628,14]
[354567501,1740577841683,-500.0,0.00038628,14]
[354567502,1740577841692,-2782.04,0.00038628,14]
[354567503,1740577841702,-3480.26,0.00038628,14]
[354567504,1740577841711,-9064.03,0.00038628,14]
[354567505,1740577841720,-1790.25,0.00038628,14]
[354567506,1740577841730,-11996.38,0.00038628,14]
[354567507,1740577841739,-867.47,0.00038628,7]
[354567508,1740577841750,-7204.63,0.00038628,14]
[354567509,1740577841760,-1439.36,0.00038628,14]
[354567510,1740577841772,-1878.05,0.00038628,14]
[354567511,1740577841787,-2514.2,0.00038628,14]
[354567512,1740577841798,-10590.07,0.00038628,14]
[354567513,1740577841807,-7878.89,0.00038628,14]
[354567514,1740577841819,-500.0,0.00038628,14]
[354567515,1740577841831,-2226.1,0.00038628,14]
[354567516,1740577841840,-963.01,0.00038628,14]
[354567517,1740577841850,-1335.47,0.00038628,14]
[354567518,1740577841862,-4068.29,0.00038628,14]
[354567519,1740577841871,-1524.81,0.00038628,14]
[354567520,1740577841881,-3119.68,0.00038628,14]
[354567521,1740577841890,-1042.94,0.00038628,14]
[354567522,1740577841900,-1414.93,0.00038628,14]
[354567523,1740577841910,-4810.19,0.00038628,14]
[354567524,1740577841919,-962.82,0.00038628,14]
[354567525,1740577841928,-500.0,0.00038628,14]
[354567526,1740577841937,-3278.03,0.00038628,14]
[354567527,1740577841947,-2165.39,0.00038628,14]
[354567528,1740577841958,-500.0,0.00038628,14]
[354567529,1740577841968,-3365.18,0.00038628,14]
[354567530,1740577841977,-2946.79,0.00038628,14]
[354567531,1740577841987,-1224.1,0.00038628,14]
[354567532,1740577841997,-2232.04,0.00038628,14]
[354567533,1740577842008,-500.0,0.00038628,14]
[354567534,1740577842017,-500.0,0.00038628,14]
[354567535,1740577842027,-2616.03,0.00038628,14]
[354567536,1740577842037,-1658.36,0.00038628,14]
[354567537,1740577842047,-3658.55,0.00038628,14]
[354567538,1740577842056,-1516.09,0.00038628,14]
[354567539,1740577842066,-500.0,0.00038628,14]
[354567540,1740577842076,-781.58,0.00038628,14]
[354567541,1740577842086,-500.0,0.00038628,14]
[354567542,1740577842096,-1606.71,0.00038628,14]
[354567543,1740577842108,-2312.99,0.00038628,14]
[354567544,1740577842119,-574.15,0.00038628,14]
[354567545,1740577842129,-500.0,0.00038628,14]
[354567546,1740577842139,-280.41344119,0.00038628,14]
[354567547,1740577842148,-2047.04,0.00038628,14]
[354567548,1740577842157,-2467.14,0.00038628,14]
[354567549,1740577842167,-500.0,0.00038628,14]
[354567550,1740577842176,-2266.99,0.00038628,14]
[354567551,1740577842185,-500.0,0.00038628,2]
[354567552,1740577842195,-510.00603525,0.00038629,14]
[354567553,1740577842204,-1312.8,0.00038629,14]
[354567554,1740577842214,-1129.28,0.00038629,14]
[354567555,1740577842224,-500.0,0.00038629,14]
[354567556,1740577842234,-579.56,0.00038629,14]
[354567557,1740577842244,-777.13,0.00038629,14]
[354567558,1740577842253,-500.0,0.00038629,14]
[354567559,1740577842263,-500.0,0.00038629,14]
[354567560,1740577842272,-748.27,0.00038629,14]
[354567561,1740577842283,-508.29,0.00038629,14]
[354567562,1740577842294,-500.0,0.00038629,14]
[354567563,1740577842304,-643.40024206,0.00038629,14]
[354567564,1740577842313,-560.37,0.00038629,14]
[354567565,1740577842322,-686.33,0.00038629,14]
[354567566,1740577842331,-500.0,0.00038629,14]
[354567567,1740577842341,-500.0,0.00038629,14]
[354567568,1740577842350,-500.0,0.00038629,14]
[354567569,1740577842361,-625.4,0.00038629,14]
[354567570,1740577842371,-500.0,0.00038629,14]
[354567571,1740577842380,-657.12,0.00038629,14]
[354567572,1740577842390,-798.41,0.00038629,14]
[354567573,1740577842399,-702.9,0.00038629,14]
[354567574,1740577842408,-656.36,0.00038629,14]
[354567575,1740577842418,-500.0,0.00038629,14]
[354567576,1740577842427,-500.0,0.00038629,14]
[354567577,1740577842437,-500.0,0.00038629,14]
[354567578,1740577842447,-500.0,0.00038629,14]
[354567579,1740577842456,-500.0,0.00038629,14]
[354567580,1740577842465,-500.0,0.00038629,14]
[354567581,1740577842475,-739.71,0.00038629,14]
[354567582,1740577842484,-500.0,0.00038629,14]
[354567583,1740577842493,-652.49,0.00038629,14]
[354567584,1740577842503,-1187.38,0.00038629,14]
[354567585,1740577842512,-500.0,0.00038629,14]
[354567586,1740577842522,-500.0,0.00038629,14]
[354567587,1740577842532,-1152.89,0.00038629,14]
[354567588,1740577842541,-500.0,0.00038629,14]
[354567589,1740577842550,-500.0,0.00038629,14]
[354567590,1740577842560,-504.44839264,0.00038629,14]
[354567591,1740577842570,-500.0,0.00038629,14]
[354567592,1740577842579,-500.0,0.00038629,14]
[354567593,1740577842589,-500.0,0.00038629,14]
[354567594,1740577842598,-500.0,0.00038629,14]
[354567595,1740577842608,-519.1,0.00038629,14]
[354567596,1740577842618,-500.0,0.00038629,14]
[354567597,1740577842627,-500.0,0.00038629,14]
[354567598,1740577842637,-1000.36,0.00038629,14]
[354567599,1740577842646,-500.0,0.00038629,14]
[354567600,1740577842655,-1053.89,0.00038629,14]
[354567601,1740577842664,-500.0,0.00038629,14]
[354567602,1740577842674,-500.0,0.00038629,14]
[354567603,1740577842683,-855.35,0.00038629,14]
[354567604,1740577842693,-500.0,0.00038629,14]
[354567605,1740577842702,-1230.63,0.00038629,14]
[354567606,1740577842712,-500.0,0.00038629,14]
[354567607,1740577842721,-713.14,0.00038629,14]
[354567608,1740577842729,-1310.18,0.00038629,14]
[354567609,1740577842739,-500.0,0.00038629,14]
[354567610,1740577842748,-500.0,0.00038629,14]
[354567611,1740577842757,-1037.5,0.00038629,14]
[354567612,1740577842769,-525.66,0.00038629,14]
[354567613,1740577842781,-750.54,0.00038629,14]
[354567614,1740577842790,-644.33,0.00038629,14]
[354567615,1740577842799,-500.0,0.00038629,14]
[354567616,1740577842811,-720.23,0.00038629,14]
[354567617,1740577842820,-1469.38,0.00038629,14]
[354567618,1740577842830,-500.0,0.00038629,14]
[354567619,1740577842838,-676.4,0.00038629,14]
[354567620,1740577842848,-552.22,0.00038629,14]
[354567621,1740577842859,-583.07,0.00038629,14]
[354567622,1740577842868,-819.23,0.00038629,14]
[354567623,1740577842877,-1594.23,0.00038629,14]
[354567624,1740577842887,-1290.54,0.00038629,14]
[354567625,1740577842896,-500.0,0.00038629,14]
[354567626,1740577842906,-628.18,0.00038629,14]
[354567627,1740577842916,-2041.57,0.00038629,14]
[354567628,1740577842926,-500.0,0.00038629,14]
[354567629,1740577842935,-500.0,0.00038629,14]
[354567630,1740577842944,-1272.67,0.00038629,14]
[354567631,1740577842953,-1295.92,0.00038629,14]
[354567632,1740577842962,-530.49,0.00038629,14]
[354567633,1740577842971,-972.66,0.00038629,14]
[354567634,1740577842981,-816.62,0.00038629,14]
[354567635,1740577842990,-1266.49,0.00038629,14]
[354567636,1740577843000,-1144.84,0.00038629,14]
[354567637,1740577843009,-557.37,0.00038629,14]
[354567638,1740577843019,-1296.84,0.00038629,14]
[354567639,1740577843028,-500.0,0.00038629,14]
[354567640,1740577843037,-2093.77,0.00038629,14]
[354567641,1740577843047,-513.61,0.00038629,14]
[354567642,1740577843056,-500.0,0.00038629,14]
[354567643,1740577843065,-882.04,0.00038629,14]
[354567644,1740577843074,-709.78,0.00038629,14]
[354567645,1740577843084,-500.0,0.00038629,14]
[354567647,1740577843093,-500.0,0.00038629,14]
[354567648,1740577843102,-500.0,0.00038629,14]
[354567650,1740577843113,-500.0,0.00038629,14]
[354567651,1740577843122,-1813.28,0.00038629,14]
[354567652,1740577843132,-500.0,0.00038629,14]
[354567653,1740577843141,-793.37,0.00038629,14]
[354567654,1740577843150,-500.0,0.00038629,14]
[354567655,1740577843160,-500.0,0.00038629,14]
[354567656,1740577843169,-2647.49,0.00038629,14]
[354567657,1740577843178,-500.0,0.00038629,14]
[354567658,1740577843187,-1324.4,0.00038629,14]
[354567659,1740577843197,-500.0,0.00038629,14]
[354567660,1740577843206,-500.0,0.00038629,14]
[354567661,1740577843216,-500.0,0.00038629,14]
[354567662,1740577843226,-500.0,0.00038629,14]
[354567663,1740577843236,-1819.24,0.00038629,14]
[354567664,1740577843245,-1361.16,0.00038629,14]
[354567665,1740577843254,-500.0,0.00038629,14]
[354567666,1740577843264,-1247.26,0.00038629,14]
[354567667,1740577843274,-500.0,0.00038629,14]
[354567668,1740577843283,-706.59,0.00038629,14]
[354567669,1740577843293,-500.0,0.00038629,14]
[354567670,1740577843303,-500.0,0.00038629,14]
[354567671,1740577843312,-872.61,0.00038629,14]
[354567672,1740577843321,-500.0,0.00038629,14]
[354567673,1740577843331,-500.0,0.00038629,14]
[354567674,1740577843341,-2051.37,0.00038629,14]
[354567675,1740577843351,-500.0,0.00038629,14]
[354567676,1740577843361,-500.0,0.00038629,14]
[354567677,1740577843370,-500.0,0.00038629,14]
[354567678,1740577843379,-500.0,0.00038629,14]
[354567679,1740577843388,-1004.19,0.00038629,14]
[354567680,1740577843398,-500.0,0.00038629,14]
[354567681,1740577843407,-1448.97,0.00038629,14]
[354567682,1740577843416,-500.0,0.00038629,14]
[354567683,1740577843425,-500.0,0.00038629,14]
[354567684,1740577843434,-1383.17,0.00038629,14]
[354567685,1740577843443,-790.09,0.00038629,14]
[354567686,1740577843452,-1696.99,0.00038629,14]
[354567687,1740577843462,-500.0,0.00038629,14]
[354567688,1740577843471,-632.7,0.00038629,14]
[354567689,1740577843480,-970.15,0.00038629,14]
[354567690,1740577843490,-1881.93,0.00038629,14]
[354567691,1740577843499,-1945.87,0.00038629,14]
[354567692,1740577843509,-500.0,0.00038629,14]
[354567693,1740577843519,-1200.84,0.00038629,14]
[354567694,1740577843528,-500.0,0.00038629,14]
[354567695,1740577843540,-1380.05,0.00038629,14]
[354567696,1740577843549,-500.0,0.00038629,14]
[354567697,1740577843559,-500.0,0.00038629,14]
[354567698,1740577843568,-500.0,0.00038629,14]
[354567699,1740577843577,-500.0,0.00038629,14]
[354567700,1740577843586,-500.0,0.00038629,14]
[354567701,1740577843595,-1222.32,0.00038629,14]
[354567702,1740577843605,-500.96980222,0.00038629,14]
[354567703,1740577843616,-1676.7,0.00038629,14]
[354567704,1740577843626,-500.0,0.00038629,14]
[354567705,1740577843635,-500.0,0.00038629,14]
[354567706,1740577843644,-500.0,0.00038629,14]
[354567707,1740577843653,-500.0,0.00038629,14]
[354567708,1740577843662,-500.0,0.00038629,14]
[354567709,1740577843673,-500.0,0.00038629,14]
[354567710,1740577843682,-1391.83,0.00038629,14]
[354567711,1740577843692,-500.0,0.00038629,14]
[354567712,1740577843701,-500.0,0.00038629,14]
[354567713,1740577843711,-1978.98,0.00038629,14]
[354567714,1740577843721,-500.0,0.00038629,14]
[354567715,1740577843730,-590.18,0.00038629,14]
[354567716,1740577843739,-1224.14,0.00038629,14]
[354567717,1740577843749,-500.0,0.00038629,14]
[354567718,1740577843758,-500.0,0.00038629,14]
[354567719,1740577843769,-500.0,0.00038629,14]
[354567720,1740577843782,-1700.34,0.00038629,14]
[354567721,1740577843792,-1065.08,0.00038629,14]
[354567722,1740577843802,-1250.82,0.00038629,14]
[354567723,1740577843811,-500.0,0.00038629,14]
[354567724,1740577843820,-990.24,0.00038629,14]
[354567725,1740577843831,-1603.67,0.00038629,14]
[354567726,1740577843840,-500.0,0.00038629,14]
[354567727,1740577843850,-500.0,0.00038629,14]
[354567728,1740577843861,-500.0,0.00038629,14]
[354567729,1740577843871,-500.0,0.00038629,14]
[354567730,1740577843881,-1249.22,0.00038629,14]
[354567731,1740577843890,-500.0,0.00038629,14]
[354567732,1740577843899,-500.0,0.00038629,14]
[354567733,1740577843909,-1019.67,0.00038629,14]
[354567734,1740577843918,-500.0,0.00038629,14]
[354567736,1740577843927,-500.0,0.00038629,14]
[354567737,1740577843937,-598.56,0.00038629,14]
[354567738,1740577843947,-737.47,0.00038629,14]
[354567739,1740577843961,-500.0,0.00038629,14]
[354567740,1740577843971,-579.27,0.00038629,14]
[354567741,1740577843981,-2303.31,0.00038629,14]
[354567742,1740577843990,-1366.67,0.00038629,14]
[354567743,1740577844000,-500.0,0.00038629,14]
[354567744,1740577844009,-500.0,0.00038629,14]
[354567745,1740577844019,-1658.66,0.00038629,14]
[354567746,1740577844029,-500.36563823,0.00038629,14]
[354567747,1740577844038,-500.0,0.00038629,14]
[354567748,1740577844048,-500.0,0.00038629,14]
[354567749,1740577844057,-500.0,0.00038629,14]
[354567750,1740577844067,-794.0,0.00038629,14]
[354567751,1740577844076,-500.0,0.00038629,14]
[354567752,1740577844086,-500.0,0.00038629,14]
[354567753,1740577844095,-1593.92,0.00038629,14]
[354567754,1740577844104,-930.67,0.00038629,14]
[354567755,1740577844115,-500.0,0.00038629,14]
[354567756,1740577844124,-500.0,0.00038629,14]
[354567757,1740577844133,-914.28,0.00038629,14]
[354567758,1740577844143,-500.0,0.00038629,14]
[354567759,1740577844152,-2032.83,0.00038629,14]
[354567760,1740577844162,-500.0,0.00038629,14]
[354567761,1740577844172,-500.0,0.00038629,14]
[354567762,1740577844181,-500.0,0.00038629,14]
[354567763,1740577844190,-500.0,0.00038629,14]
[354567764,1740577844200,-1509.21,0.00038629,14]
[354567765,1740577844209,-500.0,0.00038629,14]
[354567766,1740577844219,-556.78,0.00038629,14]
[354567767,1740577844228,-651.66,0.00038629,14]
[354567768,1740577844238,-500.0,0.00038629,14]
[354567769,1740577844247,-2067.47,0.00038629,14]
[354567770,1740577844256,-500.0,0.00038629,14]
[354567771,1740577844266,-500.0,0.00038629,14]
[354567772,1740577844275,-500.0,0.00038629,14]
[354567773,1740577844285,-931.17,0.00038629,14]
[354567774,1740577844295,-796.36,0.00038629,14]
[354567775,1740577844305,-500.0,0.00038629,14]
[354567776,1740577844315,-500.0,0.00038629,14]
[354567777,1740577844324,-878.94,0.00038629,14]
[354567778,1740577844334,-513.58940355,0.00038629,14]
[354567779,1740577844344,-2317.26,0.00038629,14]
[354567780,1740577844358,-811.32,0.00038629,14]
[354567781,1740577844368,-718.91,0.00038629,14]
[354567782,1740577844378,-986.02,0.00038629,14]
[354567783,1740577844500,-500.0,0.00038629,14]
[354567784,1740577844522,-213.74698119,0.00038629,14]
[354567785,1740577844532,-500.0,0.00038629,14]
[354567786,1740577844546,-568.27,0.00038629,14]
[354567787,1740577844556,-1193.27,0.00038629,14]
[354567788,1740577844575,-500.0,0.00038629,14]
[354567789,1740577844584,-500.0,0.00038629,14]
[354567790,1740577844594,-621.69,0.00038629,14]
[354567791,1740577844608,-1015.25,0.00038629,14]
[354567792,1740577844618,-500.0,0.00038629,14]
[354567793,1740577844628,-1166.6,0.00038629,14]
[354567794,1740577844638,-500.0,0.00038629,14]
[354567795,1740577844647,-795.61,0.00038629,14]
[354567796,1740577844657,-500.0,0.00038629,14]
[354567797,1740577844667,-500.0,0.00038629,14]
[354567798,1740577844677,-500.0,0.00038629,14]
[354567799,1740577844687,-500.0,0.00038629,14]
[354567800,1740577844696,-500.0,0.00038629,14]
[354567801,1740577844706,-867.92,0.00038629,14]
[354567802,1740577844716,-1354.78,0.00038629,14]
[354567803,1740577844726,-725.92,0.00038629,14]
[354567804,1740577844735,-1378.95,0.00038629,14]
[354567805,1740577844745,-801.49,0.00038629,14]
[354567806,1740577844754,-509.63583036,0.00038629,14]
[354567807,1740577844764,-500.0,0.00038629,14]
[354567808,1740577844778,-755.14,0.00038629,14]
[354567809,1740577844788,-772.08,0.00038629,14]
[354567810,1740577844798,-500.0,0.00038629,14]
[354567811,1740577844807,-2728.47,0.00038629,14]
[354567812,1740577844818,-1622.84,0.00038629,14]
[354567813,1740577844828,-820.99,0.00038629,14]
[354567814,1740577844837,-1253.65,0.00038629,14]
[354567815,1740577844847,-1658.28,0.00038629,14]
[354567816,1740577844857,-1470.92,0.00038629,14]
[354567817,1740577844867,-500.0,0.00038629,14]
[354567818,1740577844877,-3396.57,0.00038629,14]
[354567819,1740577844887,-1682.13,0.00038629,14]
[354567820,1740577844896,-1634.21,0.00038629,14]
[354567821,1740577844905,-3334.29,0.00038629,14]
[354567822,1740577844915,-500.0,0.00038629,14]
[354567823,1740577844924,-500.0,0.00038629,14]
[354567824,1740577844934,-2369.0,0.00038629,14]
[354567825,1740577844944,-500.0,0.00038629,14]
[354567826,1740577844953,-500.0,0.00038629,14]
[354567827,1740577844963,-528.00825172,0.00038629,14]
[354567828,1740577844973,-4171.01,0.00038629,14]
[354567829,1740577844983,-500.0,0.00038629,14]
[354567830,1740577844992,-500.0,0.00038629,14]
[354567831,1740577845001,-500.0,0.00038629,7]
[354567832,1740577845011,-500.0,0.00038629,14]
[354567833,1740577845020,-13873.2,0.00038629,14]
[354567834,1740577845030,-1878.05,0.00038629,14]
[354567835,1740577845040,-603.09,0.00038629,14]
[354567836,1740577845049,-500.0,0.00038629,14]
[354567837,1740577845059,-500.0,0.00038629,14]
[354567838,1740577845069,-500.0,0.00038629,14]
[354567839,1740577845078,-1000.08,0.00038629,14]
[354567840,1740577845088,-1178.11,0.00038629,14]
[354567841,1740577845097,-500.0,0.00038629,14]
[354567842,1740577845108,-3163.92,0.00038629,14]
[354567843,1740577845117,-1035.82,0.00038629,14]
[354567844,1740577845127,-517.38152787,0.00038629,14]
[354567845,1740577845136,-500.0,0.00038629,14]
[354567846,1740577845146,-510.02,0.00038629,14]
[354567847,1740577845156,-511.51,0.00038629,14]
[354567848,1740577845166,-500.0,0.00038629,14]
[354567849,1740577845176,-500.0,0.00038629,14]
[354567850,1740577845187,-500.0,0.00038629,14]
[354567851,1740577845197,-3537.7,0.00038629,14]
[354567852,1740577845207,-1584.97,0.00038629,14]
[354567853,1740577845217,-500.0,0.00038629,14]
[354567854,1740577845226,-883.71,0.00038629,14]
[354567855,1740577845236,-1742.53,0.00038629,14]
[354567856,1740577845245,-1183.74,0.00038629,14]
[354567857,1740577845256,-500.0,0.00038629,14]
[354567858,1740577845265,-2880.94,0.00038629,14]
[354567859,1740577845275,-2048.33,0.00038629,14]
[354567860,1740577845285,-246.97870753,0.00038629,14]
[354567861,1740577845294,-11387.44,0.00038629,14]
[354567862,1740577845304,-615.59,0.00038629,14]
[354567863,1740577845314,-300.0,0.00038629,14]
[354567864,1740577845324,-500.0,0.00038629,14]
[354567865,1740577845333,-916.59,0.00038629,14]
[354567866,1740577845343,-500.0,0.00038629,14]
[354567867,1740577845352,-559.08,0.00038629,14]
[354567868,1740577845363,-1244.24,0.00038629,14]
[354567869,1740577845373,-546.42,0.00038629,14]
[354567870,1740577845383,-1746.95,0.00038629,14]
[354567871,1740577845392,-1761.75,0.00038629,14]
[354567872,1740577845402,-500.0,0.00038629,14]
[354567873,1740577845412,-538.92,0.00038629,14]
[354567874,1740577845421,-595.5,0.00038629,14]
[354567875,1740577845431,-1217.13,0.00038629,14]
[354567876,1740577845441,-2652.63,0.00038629,14]
[354567877,1740577845450,-2987.07,0.00038629,14]
[354567878,1740577845459,-577.66,0.00038629,14]
[354567879,1740577845469,-500.0,0.00038629,14]
[354567880,1740577845479,-598.47,0.00038629,14]
[354567881,1740577845488,-3341.12,0.00038629,14]
[354567882,1740577845497,-500.0,0.00038629,14]
[354567883,1740577845507,-500.0,0.00038629,14]
[354567884,1740577845516,-500.0,0.00038629,14]
[354567885,1740577845525,-500.0,0.00038629,14]
[354567886,1740577845535,-500.0,0.00038629,14]
[354567887,1740577845544,-2065.94,0.00038629,14]
[354567888,1740577845554,-797.66,0.00038629,14]
[354567889,1740577845563,-1189.81,0.00038629,14]
[354567890,1740577845573,-566.37,0.00038629,14]
[354567891,1740577845582,-500.0,0.00038629,14]
[354567892,1740577845592,-1046.83,0.00038629,14]
[354567893,1740577845601,-500.0,0.00038629,14]
[354567894,1740577845613,-578.47,0.00038629,14]
[354567895,1740577845622,-500.0,0.00038629,14]
[354567896,1740577845632,-500.0,0.00038629,14]
[354567897,1740577845641,-500.0,0.0003863,14]
[354567898,1740577845651,-500.0,0.0003863,14]
[354567899,1740577845661,-500.0,0.0003863,14]
[354567900,1740577845670,-500.0,0.0003863,14]
[354567901,1740577845680,-500.0,0.0003863,14]
[354567902,1740577845689,-565.01,0.0003863,14]
[354567903,1740577845699,-648.16,0.0003863,14]
[354567904,1740577845708,-500.0,0.0003863,14]
[354567905,1740577845718,-831.81,0.0003863,14]
[354567906,1740577845727,-500.0,0.0003863,14]
[354567907,1740577845737,-1013.83,0.0003863,14]
[354567908,1740577845746,-500.0,0.0003863,14]
[354567909,1740577845756,-500.0,0.0003863,14]
[354567910,1740577845766,-535.53593923,0.0003863,14]
[354567911,1740577845776,-950.36,0.0003863,14]
[354567912,1740577845790,-732.41,0.0003863,14]
[354567913,1740577845800,-513.47989501,0.0003863,14]
[354567914,1740577845809,-950.01,0.0003863,14]